bitfinex/quotes_ETHUSD_20250715
["timestamp","ask_amount","ask_price","bid_price","bid_amount"]
[1752550255154,21.88153271,2945.1,2945.0,1e-08]
[1752550255362,21.88151631,2945.1,2945.0,1e-08]
[1752550255563,15.90931631,2945.1,2945.0,1e-08]
[1752550255866,20.30677044,2945.1,2945.0,1e-08]
[1752550256733,14.78377044,2945.1,2945.0,1e-08]
[1752550256933,20.30577044,2945.1,2945.0,1e-08]
[1752550258365,16.9093,2945.1,2945.0,1e-08]
[1752550258720,0.1696,2945.1,2945.0,1e-08]
[1752550258927,5.521,2945.1,2945.0,1e-08]
[1752550260240,3.39525361,2945.3,2945.0,1e-08]
[1752550260587,9.36367044,2945.1,2945.0,1e-08]
[1752550261253,0.4472,2945.1,2945.0,1e-08]
[1752550261482,5.52,2945.1,2945.0,1e-08]
[1752550261657,0.7723,2945.4,2945.0,3.39558574]
[1752550261836,5.519,2945.3,2945.0,1e-08]
[1752550262177,8.91424788,2945.3,2945.0,1e-08]
[1752550262581,8.148,2945.7,2945.1,3.39547044]
[1752550262782,8.148,2945.7,2945.4,3.39505324]
[1752550263103,5.519,2945.6,2945.0,0.03395586]
[1752550263309,5.9662,2945.6,2945.0,3.39558048]
[1752550263446,9.36113687,2945.6,2945.0,1e-08]
[1752550263789,3.39547044,2945.1,2945.0,1e-08]
[1752550263946,5.518,2945.1,2945.0,1e-08]
[1752550264579,9.36067044,2945.1,2945.0,1e-08]
[1752550265169,10.17717044,2945.1,2945.0,1e-08]
[1752550267725,20.17717044,2945.1,2945.0,1e-08]
[1752550269287,14.65917044,2945.1,2945.0,1e-08]
[1752550269683,20.17417044,2945.1,2945.0,1e-08]
[1752550272111,20.72417044,2945.1,2945.0,1e-08]
[1752550272479,0.7739,2943.6,2942.6,0.4344]
[1752550272811,13.663,2943.5,2942.9,3.39794965]
[1752550273019,13.663,2943.5,2942.9,0.4324]
[1752550273199,3.3976186,2943.3,2942.9,0.4324]
[1752550273386,5.513,2943.2,2942.9,0.4324]
[1752550273791,5.513,2943.2,2942.9,3.83040318]
[1752550274124,5.513,2943.2,2943.0,3.83026498]
[1752550274330,5.513,2943.2,2943.0,0.4324]
[1752550274625,8.15,2943.5,2943.0,0.4324]
[1752550274917,5.512,2943.4,2943.0,0.4324]
[1752550275362,5.512,2943.4,2942.6,0.002]
[1752550275514,3.39823971,2942.7,2942.6,0.002]
[1752550275843,3.39785777,2943.1,2942.6,0.002]
[1752550276048,5.512,2943.0,2942.6,0.4344]
[1752550276525,3.83688331,2943.3,2942.7,0.4324]
[1752550276526,3.39773218,2943.2,2942.7,0.4324]
[1752550276736,5.513,2943.1,2942.7,0.4324]
[1752550277107,8.91079307,2943.1,2942.7,0.4324]
[1752550277427,5.513,2943.1,2942.7,0.4324]
[1752550277941,1.17934354,2943.5,2943.4,4.15353154]
[1752550278100,8.151,2944.7,2943.7,4.15307835]
[1752550278300,5.511,2944.6,2943.9,0.7561]
[1752550278501,5.511,2944.6,2944.1,0.8034]
[1752550278852,5.511,2944.6,2944.3,3.39639303]
[1752550279056,5.511,2944.6,2944.5,3.39616233]
[1752550279262,5.511,2944.6,2944.4,3.39616427]
[1752550279530,8.151,2944.7,2944.6,4.223447]
[1752550279731,13.662,2944.7,2944.6,4.223447]
[1752550279935,13.662,2944.7,2944.6,4.655847]
[1752550280137,13.662,2944.7,2944.0,3.39666498]
[1752550280138,13.662,2944.7,2944.3,4.22379042]
[1752550280438,13.662,2944.7,2944.4,3.39621385]
[1752550280616,13.662,2944.7,2944.3,4.22376909]
[1752550281529,13.662,2944.7,2944.3,0.8274]
[1752550282447,13.662,2944.7,2944.3,4.2237923]
[1752550282625,13.662,2944.7,2944.3,0.8274]
[1752550282810,13.662,2944.7,2944.2,3.39647983]
[1752550283143,0.1696,2944.3,2944.0,0.8128]
[1752550283303,5.51,2944.2,2944.1,3.39662375]
[1752550284112,5.51,2944.2,2944.0,0.8128]
[1752550284313,0.1696,2944.0,2943.6,4.15661747]
[1752550284518,0.1696,2943.8,2943.7,3.39706664]
[1752550284719,0.1696,2943.8,2943.7,3.82946664]
[1752550284905,0.1696,2943.8,2943.7,3.39706664]
[1752550285135,0.1696,2943.8,2942.8,0.93327182]
[1752550285136,1.00726,2943.8,2943.1,0.002]
[1752550285354,5.509,2943.7,2943.1,0.002]
[1752550285508,5.509,2943.7,2943.2,3.39758942]
[1752550285713,5.509,2943.7,2943.1,0.002]
[1752550285914,0.4393,2943.6,2943.1,0.002]
[1752550286152,3.3976624,2943.2,2943.1,0.002]
[1752550286355,1.02336766,2943.7,2943.3,3.39744058]
[1752550286582,5.509,2943.6,2943.3,3.39744058]
[1752550286758,5.509,2943.5,2943.2,3.39762264]
[1752550286957,5.509,2943.4,2943.1,0.002]
[1752550287605,5.9483,2943.4,2943.1,0.002]
[1752550287896,4.21350701,2944.3,2943.7,3.39700975]
[1752550288178,4.21350701,2944.3,2943.4,3.39735532]
[1752550288179,3.39662375,2944.1,2943.4,3.39735532]
[1752550288479,3.39668599,2944.1,2943.5,3.39722552]
[1752550288883,3.3966473,2944.1,2943.5,3.39727237]
[1752550289181,3.39703665,2943.8,2943.1,3.39975474]
[1752550289359,5.509,2943.7,2943.1,0.002]
[1752550289545,5.509,2943.7,2943.1,3.39977306]
[1752550289746,5.509,2943.7,2943.2,3.3976624]
[1752550289942,5.509,2943.7,2943.2,3.8300624]
[1752550290348,0.4393,2944.5,2943.5,3.39731612]
[1752550290556,5.509,2944.2,2943.6,0.4324]
[1752550290781,5.509,2944.2,2943.7,3.39702219]
[1752550291146,5.509,2944.2,2943.7,3.82942219]
[1752550291346,8.152,2944.4,2944.0,3.39666589]
[1752550291554,8.152,2944.4,2944.1,1.2226]
[1752550291768,5.509,2944.3,2944.2,3.82890838]
[1752550291979,8.152,2944.4,2944.3,3.82879303]
[1752550292148,13.661,2944.4,2944.3,4.63034317]
[1752550292471,13.661,2944.4,2944.3,0.80155014]
[1752550292782,13.661,2944.4,2944.3,3.39639303]
[1752550293085,13.661,2944.4,2944.1,4.18676277]
[1752550293286,8.152,2944.4,2944.1,4.18676277]
[1752550293457,5.508,2944.3,2944.1,4.18676277]
[1752550293658,5.508,2944.3,2944.2,3.39650838]
[1752550293960,5.508,2944.3,2944.1,1.2226]
[1752550294165,5.508,2944.3,2943.8,3.39689644]
[1752550294378,5.508,2944.3,2943.9,3.39685451]
[1752550294675,5.508,2944.3,2943.8,3.82930127]
[1752550294878,5.508,2944.3,2943.9,3.39682888]
[1752550295586,5.508,2944.3,2943.8,0.4324]
[1752550295805,0.1696,2943.9,2943.8,3.82932436]
[1752550296099,5.6766,2943.9,2943.8,3.39692436]
[1752550296852,5.507,2943.9,2943.8,4.50872498]
[1752550297552,5.507,2943.9,2943.8,1.11180062]
[1752550297750,5.507,2943.9,2943.5,0.8023]
[1752550298094,0.1696,2943.7,2943.2,0.8042]
[1752550298253,0.4393,2943.8,2942.9,0.4324]
[1752550298254,0.1696,2943.2,2942.9,0.4324]
[1752550298449,3.39652642,2944.2,2943.6,3.3971184]
[1752550298687,0.1696,2943.6,2943.5,0.8042]
[1752550298873,5.6766,2943.6,2943.5,0.8042]
[1752550299077,5.6766,2943.6,2943.4,3.39735343]
[1752550299356,5.6766,2943.6,2943.5,3.39731612]
[1752550299556,0.8262,2944.3,2943.8,3.3969447]
[1752550299793,8.152,2944.4,2943.9,0.4324]
[1752550300001,0.1696,2944.1,2944.0,3.39666248]
[1752550300161,0.1696,2944.1,2943.9,3.39676331]
[1752550300359,0.1696,2944.1,2944.0,3.39673913]
[1752550300557,5.507,2944.1,2944.0,5.2961979]
[1752550301916,0.1696,2944.3,2944.2,3.39650838]
[1752550302423,8.152,2944.4,2944.2,3.39650838]
[1752550302424,8.152,2944.4,2944.3,3.39639303]
[1752550302707,13.659,2944.4,2944.3,3.39639303]
[1752550302881,13.659,2944.4,2944.3,3.84559303]
[1752550303086,8.152,2944.4,2944.3,4.58676317]
[1752550303269,13.658,2944.4,2944.3,4.58676317]
[1752550303469,5.506,2944.4,2944.3,4.58676317]
[1752550303666,5.506,2944.4,2944.3,4.13756317]
[1752550303885,0.1696,2944.3,2944.1,3.39656585]
[1752550304085,0.1696,2944.3,2944.2,3.39650838]
[1752550305294,0.1696,2944.3,2944.0,0.7877]
[1752550305506,0.1696,2944.3,2943.9,3.39685451]
[1752550305702,0.1696,2943.9,2943.3,0.1696]
[1752550305914,6.3072,2944.4,2943.3,0.1696]
[1752550305915,0.1696,2943.6,2943.5,3.39731612]
[1752550306212,5.6756,2943.6,2943.5,13.84651612]
[1752550306774,5.6756,2943.6,2943.5,13.39731612]
[1752550307890,5.6756,2943.6,2943.1,0.9593]
[1752550308087,0.1696,2943.3,2943.1,0.002]
[1752550308280,8.9036624,2943.2,2943.1,0.002]
[1752550308476,10.1419624,2943.2,2943.1,0.002]
[1752550308790,20.1419624,2943.2,2943.1,0.002]
[1752550309025,4.20813971,2942.7,2942.6,0.002]
[1752550309207,4.20813971,2942.7,2942.0,0.002]
[1752550309208,3.39893273,2942.1,2942.0,0.002]
[1752550309531,9.71483273,2942.1,2942.0,0.002]
[1752550309708,10.14323273,2942.1,2942.0,0.002]
[1752550310092,6.7443,2942.1,2942.0,0.002]
[1752550311116,0.4284,2942.6,2942.0,0.002]
[1752550311315,0.1696,2942.1,2942.0,0.002]
[1752550311551,0.1696,2942.1,2942.0,3.40096767]
[1752550311718,8.152,2942.7,2942.5,3.39845731]
[1752550311905,8.152,2942.7,2942.6,3.39835519]
[1752550312110,0.1696,2942.6,2942.0,1.4125]
[1752550312406,0.1696,2942.6,2942.5,3.39847068]
[1752550312609,5.6766,2942.6,2942.5,3.39847068]
[1752550314642,0.1696,2942.6,2942.5,3.39847068]
[1752550314803,5.6766,2942.6,2942.5,3.39847068]
[1752550315924,0.0379,2942.4,2939.1,0.1696]
[1752550316122,10.5879,2940.7,2939.1,0.1696]
[1752550316324,13.40112917,2940.2,2940.1,0.17719724]
[1752550316534,10.0,2940.1,2939.3,3.85135903]
[1752550316736,10.0,2939.9,2939.3,1.19493763]
[1752550316939,5.605,2939.8,2939.4,0.48322054]
[1752550317119,3.40108862,2940.3,2939.5,0.8093]
[1752550317324,10.0,2940.5,2939.5,4.21120082]
[1752550317325,5.605,2940.2,2939.5,4.21120082]
[1752550317533,5.605,2940.1,2939.7,3.40161596]
[1752550317745,5.605,2940.1,2939.8,3.85077007]
[1752550318045,8.154,2940.6,2939.9,3.85057102]
[1752550318253,5.607,2940.5,2940.4,3.40089783]
[1752550318551,5.86394937,2940.5,2940.4,3.85009783]
[1752550319046,5.603,2940.8,2940.7,3.40046137]
[1752550319351,5.603,2940.8,2940.7,3.84966137]
[1752550319850,4.16696627,2941.9,2940.7,0.89256692]
[1752550320056,3.39928886,2941.8,2941.0,3.40019164]
[1752550320350,0.7677,2941.9,2941.1,3.4000884]
[1752550320522,9.49607343,2941.2,2941.1,4.7280884]
[1752550320722,9.49607343,2941.2,2941.1,0.778]
[1752550320926,9.49607343,2941.2,2941.1,0.41781718]
[1752550321135,8.156,2942.1,2941.1,0.4492]
[1752550321339,5.608,2942.0,2941.6,0.7714]
[1752550321655,5.608,2942.0,2941.7,0.48319394]
[1752550321944,5.608,2942.0,2941.8,0.4492]
[1752550322147,5.608,2942.0,2941.7,3.43329901]
[1752550322320,5.608,2942.0,2941.7,4.19373126]
[1752550322521,5.608,2942.0,2936.7,5.0124]
[1752550322522,5.608,2942.0,2941.0,3.40012171]
[1752550322766,11.2347,2941.9,2940.5,1.2702]
[1752550322935,11.2347,2941.9,2940.5,0.821]
[1752550322936,10.0,2941.7,2940.5,0.821]
[1752550323452,3.39970518,2941.5,2940.7,3.40046911]
[1752550323747,5.621,2941.6,2940.8,0.03400435]
[1752550323947,3.39992725,2941.3,2940.8,0.03400435]
[1752550324174,5.62,2941.2,2940.5,0.821]
[1752550324347,9.0201129,2941.1,2940.5,0.85500782]
[1752550324534,5.618,2941.0,2940.5,0.85500782]
[1752550324739,5.95125806,2941.0,2940.0,1.2291]
[1752550325052,5.95125806,2941.0,2940.0,0.7799]
[1752550325270,0.4284,2940.9,2940.0,0.7799]
[1752550325645,3.40043525,2940.8,2939.6,1.2291]
[1752550325855,3.40077597,2940.6,2939.6,1.2291]
[1752550326071,0.1696,2940.3,2940.0,3.40129407]
[1752550326248,5.614,2940.2,2939.9,0.03401476]
[1752550326452,5.614,2940.2,2940.0,3.40135795]
[1752550326662,0.1696,2940.3,2940.1,3.40124485]
[1752550326865,5.611,2940.2,2940.1,3.40124485]
[1752550327159,5.611,2940.2,2939.9,0.4492]
[1752550327473,5.61,2940.1,2940.0,3.57088737]
[1752550327784,5.61,2940.1,2940.0,0.1696]
[1752550328077,0.8224,2941.4,2940.1,0.7649]
[1752550328373,0.1696,2941.1,2940.3,0.55]
[1752550328578,0.8031,2941.0,2937.9,2.68948695]
[1752550328878,0.8031,2941.0,2936.4,0.7562]
[1752550328879,0.8031,2940.2,2938.9,0.17731043]
[1752550329178,0.8031,2940.2,2938.0,1.2054]
[1752550329179,0.1696,2939.1,2938.5,3.40298813]
[1752550329472,0.1696,2939.1,2938.9,0.17734505]
[1752550329473,5.705,2939.1,2938.9,0.17734505]
[1752550329670,5.705,2939.1,2938.9,3.40262317]
[1752550329975,5.705,2939.1,2938.9,0.17734783]
[1752550330470,5.705,2939.1,2938.7,0.1696]
[1752550330675,5.705,2939.1,2938.7,3.57241809]
[1752550330839,0.1696,2939.0,2938.7,3.40281809]
[1752550331171,0.1696,2939.0,2938.7,0.69755034]
[1752550331379,5.705,2939.1,2939.0,3.40251786]
[1752550331600,5.701,2939.5,2939.1,3.40239924]
[1752550331877,5.701,2939.5,2939.4,3.40205484]
[1752550332085,5.701,2939.5,2939.3,3.40217058]
[1752550332281,5.701,2939.5,2939.4,3.40205484]
[1752550332455,5.701,2939.5,2939.3,3.40216246]
[1752550332661,5.701,2939.5,2939.3,3.40217058]
[1752550332861,5.701,2939.5,2939.4,3.40205484]
[1752550333684,5.701,2939.5,2939.4,3.74226032]
[1752550333890,5.701,2939.5,2939.4,3.40205484]
[1752550334089,5.701,2939.5,2939.4,3.84925484]
[1752550334451,0.1696,2939.9,2939.8,3.40159194]
[1752550334652,5.8586,2939.9,2939.6,3.40176542]
[1752550334989,5.8586,2939.9,2939.7,3.40168559]
[1752550335190,5.8586,2939.9,2939.8,3.40159194]
[1752550335572,5.689,2939.9,2939.8,3.40159194]
[1752550335774,5.689,2939.9,2939.8,3.84879194]
[1752550336164,5.689,2939.9,2939.8,6.29587432]
[1752550336360,5.689,2939.9,2939.8,6.46547432]
[1752550336890,5.8586,2939.9,2939.0,1.2018]
[1752550337201,0.1696,2939.7,2939.5,3.40192563]
[1752550337360,0.1696,2939.7,2939.4,3.40202624]
[1752550337557,0.20360914,2939.7,2939.1,3.57197488]
[1752550337760,0.03400914,2939.7,2939.5,3.40185493]
[1752550337988,0.1696,2939.7,2939.4,3.40202564]
[1752550338195,0.1696,2939.7,2939.4,3.40205158]
[1752550338499,0.03400914,2939.8,2939.3,3.40207535]
[1752550338653,0.1696,2939.5,2939.4,3.40205484]
[1752550338857,5.8456,2939.5,2939.4,3.40205484]
[1752550339853,5.676,2939.5,2939.4,3.40205484]
[1752550340498,5.676,2939.5,2939.4,4.58065752]
[1752550340796,5.676,2939.5,2939.4,4.05287538]
[1752550340998,0.1696,2940.0,2939.9,3.40147624]
[1752550341155,5.668,2940.0,2939.9,3.40147624]
[1752550342975,0.1696,2940.1,2940.0,3.40136054]
[1752550343178,3.43450105,2940.8,2940.3,3.40099633]
[1752550343391,0.1696,2940.3,2940.2,3.40108183]
[1752550343593,5.659,2940.5,2940.4,3.40089783]
[1752550343789,5.8286,2940.5,2940.4,3.40089783]
[1752550344179,0.1696,2940.5,2940.4,3.40089783]
[1752550344382,5.8246,2940.5,2940.4,3.40089783]
[1752550344886,5.655,2940.5,2940.4,3.40089783]
[1752550346407,6.6518,2940.5,2939.5,0.4472]
[1752550346612,0.1696,2940.3,2939.8,0.1696]
[1752550346813,0.1696,2940.3,2939.9,3.40140648]
[1752550347111,0.46530914,2940.2,2939.5,0.8232]
[1752550347270,5.8166,2940.1,2940.0,3.40136054]
[1752550347474,5.8166,2940.1,2939.9,3.40142477]
[1752550347673,5.8166,2940.1,2940.0,3.40136054]
[1752550349091,0.1696,2940.1,2940.0,3.40136054]
[1752550349292,5.643,2940.1,2940.0,3.43537414]
[1752550349535,5.643,2940.1,2940.0,3.40136054]
[1752550350429,5.643,2940.1,2939.9,0.1696]
[1752550350630,0.46530914,2940.0,2939.5,0.8232]
[1752550350789,0.1696,2939.8,2939.4,3.40201375]
[1752550350985,0.03400914,2940.6,2940.4,3.40089783]
[1752550351214,0.1696,2940.4,2940.1,3.40113105]
[1752550351428,0.1696,2940.4,2939.7,0.1696]
[1752550351636,0.1696,2940.4,2939.9,1.3673]
[1752550351804,5.638,2940.3,2940.2,3.40101921]
[1752550352122,5.638,2940.3,2940.2,3.84821921]
[1752550352319,5.638,2940.3,2940.2,4.01781921]
[1752550353844,5.638,2940.3,2940.2,3.57061921]
[1752550354171,0.001,2940.6,2940.5,4.21828217]
[1752550354448,0.001,2940.6,2940.5,5.14979923]
[1752550354753,0.001,2940.6,2940.5,5.59699923]
[1752550355055,0.001,2940.6,2940.5,4.01758217]
[1752550355219,0.001,2940.6,2940.5,3.57038217]
[1752550355406,0.001,2940.6,2940.5,3.40078217]
[1752550356149,0.001,2940.6,2940.4,3.40085174]
[1752550356314,0.001,2940.6,2940.5,3.40078217]
[1752550357230,0.001,2940.6,2940.2,0.1696]
[1752550357410,0.001,2940.6,2940.4,3.4008487]
[1752550357609,0.001,2940.6,2940.3,3.40098227]
[1752550357610,0.4313,2940.5,2940.3,3.40098227]
[1752550357810,0.6009,2940.5,2940.2,3.40107077]
[1752550358050,0.46530914,2940.4,2940.1,3.40120371]
[1752550358348,0.1696,2940.1,2940.0,3.40132373]
[1752550358648,0.1696,2940.1,2939.8,0.002]
[1752550359022,0.4313,2940.0,2939.8,0.002]
[1752550359220,5.623,2939.9,2939.8,0.002]
[1752550359527,9.71461715,2939.9,2939.8,0.002]
[1752550359731,6.74444091,2939.9,2939.8,0.002]
[1752550360546,6.56796952,2939.9,2939.8,0.002]
[1752550360847,10.41524576,2939.9,2939.8,0.002]
[1752550361805,21.17314576,2939.9,2939.8,0.002]
[1752550361953,21.72314576,2939.9,2939.8,0.002]
[1752550362277,21.17314576,2939.9,2939.8,0.002]
[1752550362636,21.16514576,2939.9,2939.8,0.002]
[1752550363333,21.16414576,2939.9,2939.8,0.002]
[1752550364083,21.16114576,2939.9,2939.8,0.002]
[1752550364375,21.16014576,2939.9,2939.8,0.002]
[1752550365074,17.75866952,2939.9,2939.8,0.002]
[1752550365404,0.8237,2940.3,2939.8,0.002]
[1752550365577,0.03400914,2940.4,2939.8,4.67686381]
[1752550365737,5.606,2940.3,2939.8,1.2753]
[1752550365943,5.606,2940.3,2940.1,3.40113064]
[1752550366138,5.606,2940.3,2940.2,3.40112917]
[1752550367069,5.606,2940.3,2939.8,0.8303]
[1752550367397,5.606,2940.3,2940.2,3.40112917]
[1752550367550,5.606,2940.3,2940.2,3.71833362]
[1752550367951,6.0518,2940.3,2940.2,0.31720445]
[1752550368173,6.9970585,2940.3,2940.2,0.31720445]
[1752550368479,10.398072,2940.3,2940.2,0.31720445]
[1752550368784,20.398072,2940.3,2940.2,0.31720445]
[1752550370794,21.219472,2940.3,2940.2,0.31720445]
[1752550371866,17.8184585,2940.3,2940.2,0.31720445]
[1752550372068,17.3726585,2940.3,2940.2,0.31720445]
[1752550372681,0.1696,2940.2,2939.9,3.40144196]
[1752550372890,5.62200914,2940.1,2940.0,0.3172809]
[1752550373077,5.588,2940.1,2940.0,3.71864144]
[1752550373277,5.588,2940.1,2940.0,5.66474978]
[1752550373590,0.1696,2940.3,2940.2,3.40112917]
[1752550373749,0.001,2940.6,2940.5,3.40078217]
[1752550373953,5.7566,2940.6,2940.5,3.71802515]
[1752550374480,5.587,2940.6,2940.5,0.31724298]
[1752550374868,5.587,2940.6,2940.5,3.71802515]
[1752550375068,5.587,2940.6,2940.5,0.31724298]
[1752550375276,5.587,2940.6,2940.5,3.71802515]
[1752550376088,5.587,2940.6,2940.5,0.31724298]
[1752550377295,9.99216653,2940.6,2940.5,0.31724298]
[1752550377898,20.79846653,2940.6,2940.5,0.31724298]
[1752550379901,11.366,2940.6,2940.5,0.31724298]
[1752550380071,20.78646653,2940.6,2940.5,0.31724298]
[1752550381002,24.14008938,2940.6,2939.8,0.002]
[1752550381207,13.40147624,2939.9,2939.8,0.002]
[1752550381369,19.77577624,2939.9,2939.8,0.319296]
[1752550381698,20.48212347,2939.9,2939.8,0.319296]
[1752550381863,0.55,2939.5,2937.3,0.8166]
[1752550382064,0.8063,2938.7,2937.5,3.84915744]
[1752550382264,5.60000914,2938.6,2937.5,0.445]
[1752550382500,3.40326419,2938.4,2937.7,0.1774002]
[1752550382684,0.03400914,2938.3,2937.7,0.1774002]
[1752550382889,0.8063,2938.7,2938.0,0.7936]
[1752550383077,5.585,2938.6,2938.5,3.40309681]
[1752550383278,5.584,2938.6,2938.5,0.445]
[1752550383511,5.584,2938.6,2938.5,3.84807073]
[1752550383665,0.03400914,2939.1,2938.8,3.40263554]
[1752550383863,9.21664723,2939.9,2938.9,0.445]
[1752550384174,8.163,2939.9,2939.8,3.40159194]
[1752550384721,0.1696,2940.1,2940.0,3.40136054]
[1752550385019,0.1706,2940.6,2940.4,3.40081619]
[1752550385312,5.588,2940.5,2940.4,3.40081619]
[1752550385677,5.588,2940.5,2940.3,3.40093609]
[1752550385875,13.43490741,2940.4,2939.6,0.8327]
[1752550386075,0.1696,2940.1,2940.0,3.40136054]
[1752550386312,5.7576,2940.1,2940.0,3.40136054]
[1752550386513,5.7576,2940.1,2939.9,3.40144222]
[1752550387092,5.7576,2940.1,2939.9,3.40138697]
[1752550387401,5.7576,2940.1,2940.0,3.40136054]
[1752550387876,0.1696,2940.5,2940.4,3.40089783]
[1752550388075,5.7516,2940.5,2940.1,3.40113904]
[1752550388319,5.7516,2940.5,2940.2,3.40111225]
[1752550388822,5.7516,2940.5,2940.2,3.40102069]
[1752550389130,0.1696,2940.5,2940.4,3.40089783]
[1752550389283,0.001,2940.6,2940.5,3.40078217]
[1752550389483,5.578,2940.6,2940.5,3.40078217]
[1752550390308,5.574,2940.6,2940.5,4.62678217]
[1752550391530,5.574,2940.6,2940.5,4.79638217]
[1752550392940,5.574,2940.6,2940.4,3.40084383]
[1752550393082,0.03400914,2940.5,2939.6,3.85889363]
[1752550393286,0.03400914,2940.5,2940.1,3.4011567]
[1752550393993,0.03400914,2940.5,2940.2,0.31717777]
[1752550394188,0.03400914,2940.5,2940.3,0.31717777]
[1752550394390,0.5584,2940.6,2940.4,3.7180756]
[1752550394616,0.5584,2940.6,2940.2,3.40103194]
[1752550394617,0.001,2940.6,2940.5,0.31717777]
[1752550394818,5.576,2940.6,2940.5,0.31717777]
[1752550395116,5.576,2940.6,2940.5,3.71795994]
[1752550395277,0.001,2940.6,2940.5,4.17505994]
[1752550395479,5.574,2940.6,2940.5,4.17505994]
[1752550396132,5.574,2940.6,2940.5,3.71795994]
[1752550397720,0.001,2940.6,2940.5,4.17505994]
[1752550397892,5.566,2940.6,2940.5,4.96666288]
[1752550398081,5.566,2940.6,2940.5,4.93265506]
[1752550398287,5.566,2940.6,2940.5,4.61547729]
[1752550398620,5.566,2940.6,2940.5,4.93267771]
[1752550399410,5.566,2940.6,2940.5,4.93264187]
[1752550400112,0.001,2940.6,2940.5,4.96664969]
[1752550400326,5.564,2940.6,2940.5,5.48264187]
[1752550401953,0.001,2940.6,2940.5,5.48264187]
[1752550402159,5.55,2940.6,2940.5,5.48264187]
[1752550403134,5.55,2940.6,2940.5,5.65224187]
[1752550403753,5.547,2940.6,2940.5,5.65224187]
[1752550404052,0.001,2940.6,2940.5,5.65224187]
[1752550404252,5.542,2940.6,2940.5,5.65224187]
[1752550404457,0.001,2940.6,2940.5,5.65224187]
[1752550404661,5.542,2940.6,2940.5,4.64514187]
[1752550404863,5.542,2940.6,2940.5,0.31716458]
[1752550405048,9.39106653,2940.6,2940.5,0.31716458]
[1752550405361,0.001,2940.6,2940.5,0.31716458]
[1752550405518,5.7106,2940.6,2940.5,3.71794675]
[1752550405722,5.7106,2940.6,2940.5,0.31716458]
[1752550406134,5.7106,2940.6,2940.5,3.71794675]
[1752550406457,5.539,2940.6,2940.5,0.31716458]
[1752550406679,5.539,2940.6,2940.5,3.71794675]
[1752550407183,5.539,2940.6,2940.5,3.71773686]
[1752550407353,5.539,2940.6,2940.5,4.17483686]
[1752550407542,5.539,2940.6,2940.5,0.31695469]
[1752550407543,0.001,2940.6,2940.5,0.31695469]
[1752550407734,5.538,2940.6,2940.5,0.31697297]
[1752550407939,6.88120914,2940.6,2940.5,0.31697297]
[1752550408278,6.8472,2940.6,2940.5,0.31697297]
[1752550408481,6.8472,2940.6,2940.5,0.31698767]
[1752550408849,6.0918,2940.6,2940.5,0.31698767]
[1752550409039,5.538,2940.6,2940.5,0.31698767]
[1752550409241,0.001,2940.6,2940.5,0.31698767]
[1752550409473,5.538,2940.6,2940.5,0.31698767]
[1752550409879,0.001,2940.6,2940.5,4.17486984]
[1752550410180,5.538,2940.6,2940.5,4.17486984]
[1752550410359,0.001,2940.6,2940.5,4.92546984]
[1752550410569,0.001,2940.6,2940.5,4.95947766]
[1752550410738,5.538,2940.6,2940.5,4.95947766]
[1752550410939,5.538,2940.6,2940.5,4.92546984]
[1752550411140,0.001,2940.6,2940.5,10.56906963]
[1752550411441,5.538,2940.6,2940.5,10.70466181]
[1752550411853,5.538,2940.6,2940.5,8.47776984]
[1752550412245,5.538,2940.6,2940.5,5.07698767]
[1752550414446,0.001,2940.6,2940.5,8.93486984]
[1752550414646,5.537,2940.6,2940.5,9.10446984]
[1752550414945,0.001,2940.6,2940.5,11.7081065]
[1752550416074,0.001,2940.6,2940.5,11.39111883]
[1752550416278,0.001,2940.6,2940.5,11.70919171]
[1752550416988,0.001,2940.6,2940.5,11.709166]
[1752550417348,1e-08,2940.6,2940.5,21.539566]
[1752550418496,1e-08,2940.6,2940.5,8.47882934]
[1752550418867,1e-08,2940.6,2940.5,0.31804717]
[1752550419070,1e-08,2940.6,2940.5,3.71882934]
[1752550419922,1e-08,2940.6,2940.5,0.31804717]
[1752550420205,4.66166654,2940.6,2940.5,0.31804717]
[1752550420366,5.13123411,2940.6,2940.5,0.31804717]
[1752550420551,5.16524325,2940.6,2940.5,0.31804717]
[1752550421197,1.76457672,2940.6,2940.5,0.31804717]
[1752550421360,5.16524325,2940.6,2940.5,0.31804717]
[1752550422124,5.16524325,2940.6,2940.5,0.31822685]
[1752550422327,0.81260001,2940.6,2940.5,3.71900902]
[1752550422628,5.53600001,2940.6,2940.5,3.71900902]
[1752550422787,5.53600001,2940.6,2940.5,0.31822685]
[1752550423289,5.53600001,2940.6,2940.5,3.71900902]
[1752550423497,5.53600001,2940.6,2940.5,0.31822685]
[1752550423899,5.99250001,2940.6,2940.5,0.31822685]
[1752550424292,5.53600001,2940.6,2940.5,3.71900902]
[1752550424629,9.39316654,2940.6,2940.5,0.31822685]
[1752550424780,10.71516654,2940.6,2940.5,0.31822685]
[1752550424975,20.71516654,2940.6,2940.5,0.31822685]
[1752550425282,20.71516654,2940.6,2939.2,0.4642]
[1752550425283,3.40126742,2940.1,2939.6,3.40182227]
[1752550425518,5.57000914,2940.0,2939.7,0.31824667]
[1752550425685,5.57000914,2940.0,2939.8,0.31824874]
[1752550425893,8.97136968,2940.0,2939.9,0.31824874]
[1752550426093,5.536,2940.0,2939.9,0.31824874]
[1752550426308,5.57000914,2940.0,2939.9,0.31824874]
[1752550427968,9.42786968,2940.0,2939.9,0.31824874]
[1752550428172,5.9925,2940.0,2939.9,0.31824874]
[1752550428471,6.02650914,2940.0,2939.9,0.31824874]
[1752550428894,10.19476968,2940.0,2939.9,0.31824874]
[1752550429210,10.16076054,2940.0,2939.9,0.31824874]
[1752550430171,10.71436054,2940.0,2939.9,0.31824874]
[1752550430371,7.313,2940.0,2939.9,0.31824874]